[Event "Titled Tuesday Blitz September 27 Early 2022"]
[White "Alexikov, Alexander"]
[Black "Antonio, Jorge Carlos"]
[WhiteFideId "14103958"]
[BlackFideId "113190"]
[WhiteElo "2222"]
[BlackElo "2247"]
[Result "0-1"]
[Round "08"]
[TimeControl "180+1"]
[Date "2022.09.27"]
[WhiteClock "0:00:01"]
[BlackClock "0:00:11"]

1. e4 {[%clk 0:02:54]}  c5 {[%clk 0:02:59]} 2. Nf3 {[%clk 0:02:54]}  e6 {[%clk 0:02:59]} 3. Nc3 {[%clk 0:02:53]}  Nc6 {[%clk 0:02:59]} 4. d4 {[%clk 0:02:52]}  cxd4 {[%clk 0:02:59]} 5. Nxd4 {[%clk 0:02:52]}  a6 {[%clk 0:02:59]} 6. Nxc6 {[%clk 0:02:49]}  bxc6 {[%clk 0:02:59]} 7. Bd3 {[%clk 0:02:49]}  d5 {[%clk 0:02:58]} 8. Qe2 {[%clk 0:02:49]}  Nf6 {[%clk 0:02:58]} 9. O-O {[%clk 0:02:48]}  Bb4 {[%clk 0:02:56]} 10. Bd2 {[%clk 0:02:47]}  O-O {[%clk 0:02:54]} 11. Rad1 {[%clk 0:02:40]}  Be7 {[%clk 0:02:44]} 12. b3 {[%clk 0:02:25]}  a5 {[%clk 0:02:44]} 13. Rfe1 {[%clk 0:02:21]}  Qb6 {[%clk 0:02:42]} 14. Na4 {[%clk 0:02:13]}  Qa7 {[%clk 0:02:39]} 15. Be3 {[%clk 0:02:10]}  d4 {[%clk 0:02:36]} 16. Bc1 {[%clk 0:02:08]}  e5 {[%clk 0:02:36]} 17. Bc4 {[%clk 0:01:54]}  Bb4 {[%clk 0:02:31]} 18. Rf1 {[%clk 0:01:47]}  Bg4 {[%clk 0:02:29]} 19. f3 {[%clk 0:01:46]}  d3+ {[%clk 0:02:21]} 20. Qf2 {[%clk 0:01:45]}  Qxf2+ {[%clk 0:02:15]} 21. Rxf2 {[%clk 0:01:43]}  dxc2 {[%clk 0:02:14]} 22. Rxc2 {[%clk 0:01:41]}  Be6 {[%clk 0:02:10]} 23. Bb2 {[%clk 0:01:36]}  Bxc4 {[%clk 0:02:05]} 24. Rxc4 {[%clk 0:01:36]}  Rfd8 {[%clk 0:01:59]} 25. Rdc1 {[%clk 0:01:17]}  Rd2 {[%clk 0:01:52]} 26. R1c2 {[%clk 0:01:17]}  Rxc2 {[%clk 0:01:52]} 27. Rxc2 {[%clk 0:01:16]}  Rd8 {[%clk 0:01:45]} 28. Bxe5 {[%clk 0:01:12]}  Ne8 {[%clk 0:01:35]} 29. Kf2 {[%clk 0:01:10]}  Rd2+ {[%clk 0:01:30]} 30. Rxd2 {[%clk 0:01:09]}  Bxd2 {[%clk 0:01:30]} 31. Ke2 {[%clk 0:01:09]}  Bb4 {[%clk 0:01:29]} 32. Kd3 {[%clk 0:01:08]}  f6 {[%clk 0:01:27]} 33. Bf4 {[%clk 0:01:07]}  Kf7 {[%clk 0:01:24]} 34. Kc4 {[%clk 0:01:06]}  Ke6 {[%clk 0:01:14]} 35. Bb8 {[%clk 0:01:05]}  f5 {[%clk 0:01:11]} 36. Nc5+ {[%clk 0:00:54]}  Ke7 {[%clk 0:00:52]} 37. exf5 {[%clk 0:00:51]}  Nd6+ {[%clk 0:00:46]} 38. Bxd6+ {[%clk 0:00:50]}  Kxd6 {[%clk 0:00:46]} 39. Nd3 {[%clk 0:00:41]}  Bd2 {[%clk 0:00:43]} 40. a3 {[%clk 0:00:30]}  h6 {[%clk 0:00:39]} 41. g4 {[%clk 0:00:28]}  c5 {[%clk 0:00:33]} 42. Nf2 {[%clk 0:00:23]}  Ke5 {[%clk 0:00:30]} 43. Ne4 {[%clk 0:00:22]}  Be3 {[%clk 0:00:28]} 44. Nxc5 {[%clk 0:00:21]}  Kf4 {[%clk 0:00:25]} 45. b4 {[%clk 0:00:15]}  axb4 {[%clk 0:00:24]} 46. axb4 {[%clk 0:00:14]}  Kxf3 {[%clk 0:00:24]} 47. Ne6 {[%clk 0:00:11]}  Kxg4 {[%clk 0:00:20]} 48. Nxg7 {[%clk 0:00:11]}  Kg5 {[%clk 0:00:17]} 49. Kd5 {[%clk 0:00:09]}  Kf6 {[%clk 0:00:16]} 50. Ke4 {[%clk 0:00:08]}  Bb6 {[%clk 0:00:15]} 51. Ne8+ {[%clk 0:00:04]}  Kf7 {[%clk 0:00:14]} 52. Nd6+ {[%clk 0:00:04]}  Kg8 {[%clk 0:00:12]} 53. f6 {[%clk 0:00:01]}  Kf8 {[%clk 0:00:11]} 0-1


[Site "https://www.chess.com"]

[Event "Titled Tuesday Blitz September 27 Early 2022"]
[White "Andreikin, Dmitry"]
[Black "Carlsen, Magnus"]
[WhiteFideId "4158814"]
[BlackFideId "1503014"]
[WhiteElo "2736"]
[BlackElo "2830"]
[Result "1-0"]
[Round "08"]
[TimeControl "180+1"]
[Date "2022.09.27"]
[WhiteClock "0:00:05"]
[BlackClock "0:00:06"]

1. d4 {[%clk 0:03:00]}  d6 {[%clk 0:02:58]} 2. e4 {[%clk 0:02:59]}  g6 {[%clk 0:02:58]} 3. Bc4 {[%clk 0:02:56]}  Nf6 {[%clk 0:02:58]} 4. Qe2 {[%clk 0:02:56]}  Nc6 {[%clk 0:02:54]} 5. Nf3 {[%clk 0:02:53]}  Bg4 {[%clk 0:02:54]} 6. c3 {[%clk 0:02:48]}  e5 {[%clk 0:02:54]} 7. Bb5 {[%clk 0:02:33]}  Nd7 {[%clk 0:02:49]} 8. dxe5 {[%clk 0:02:18]}  Ndxe5 {[%clk 0:02:43]} 9. Nbd2 {[%clk 0:02:17]}  Bg7 {[%clk 0:02:29]} 10. h3 {[%clk 0:02:17]}  Bd7 {[%clk 0:02:29]} 11. O-O {[%clk 0:02:13]}  O-O {[%clk 0:02:28]} 12. Nxe5 {[%clk 0:02:08]}  Nxe5 {[%clk 0:02:28]} 13. f4 {[%clk 0:02:08]}  a6 {[%clk 0:02:24]} 14. Bxd7 {[%clk 0:02:08]}  Nxd7 {[%clk 0:02:25]} 15. f5 {[%clk 0:02:05]}  Qe7 {[%clk 0:02:23]} 16. Qf3 {[%clk 0:01:46]}  Rae8 {[%clk 0:02:23]} 17. g4 {[%clk 0:01:32]}  Bh6 {[%clk 0:01:46]} 18. Rf2 {[%clk 0:01:18]}  d5 {[%clk 0:01:20]} 19. f6 {[%clk 0:01:00]}  Qd8 {[%clk 0:01:11]} 20. Qg3 {[%clk 0:00:44]}  Nxf6 {[%clk 0:01:05]} 21. e5 {[%clk 0:00:40]}  Bxd2 {[%clk 0:01:05]} 22. Rxf6 {[%clk 0:00:35]}  Bxc1 {[%clk 0:01:01]} 23. Rxc1 {[%clk 0:00:36]}  Re6 {[%clk 0:00:59]} 24. Rcf1 {[%clk 0:00:33]}  Qe7 {[%clk 0:01:00]} 25. Rxe6 {[%clk 0:00:24]}  fxe6 {[%clk 0:01:01]} 26. Rf6 {[%clk 0:00:24]}  Rxf6 {[%clk 0:00:56]} 27. exf6 {[%clk 0:00:25]}  Qc5+ {[%clk 0:00:38]} 28. Kg2 {[%clk 0:00:25]}  d4 {[%clk 0:00:26]} 29. cxd4 {[%clk 0:00:18]}  Qc2+ {[%clk 0:00:22]} 30. Kf3 {[%clk 0:00:06]}  Qd3+ {[%clk 0:00:21]} 31. Kg2 {[%clk 0:00:05]}  Qxg3+ {[%clk 0:00:22]} 32. Kxg3 {[%clk 0:00:06]}  g5 {[%clk 0:00:22]} 33. h4 {[%clk 0:00:05]}  h6 {[%clk 0:00:22]} 34. hxg5 {[%clk 0:00:05]}  hxg5 {[%clk 0:00:23]} 35. Kf3 {[%clk 0:00:06]}  Kf7 {[%clk 0:00:24]} 36. Ke4 {[%clk 0:00:06]}  Kxf6 {[%clk 0:00:24]} 37. d5 {[%clk 0:00:07]}  a5 {[%clk 0:00:14]} 38. a4 {[%clk 0:00:07]}  e5 {[%clk 0:00:12]} 39. b3 {[%clk 0:00:05]}  b6 {[%clk 0:00:13]} 40. Kd3 {[%clk 0:00:05]}  Ke7 {[%clk 0:00:13]} 41. Ke3 {[%clk 0:00:06]}  Kd7 {[%clk 0:00:13]} 42. Kd3 {[%clk 0:00:06]}  c6 {[%clk 0:00:05]} 43. Ke4 {[%clk 0:00:05]}  c5 {[%clk 0:00:05]} 44. Kxe5 {[%clk 0:00:05]}  b5 {[%clk 0:00:06]} 45. axb5 {[%clk 0:00:05]} 1-0


[Site "https://www.chess.com"]

[Event "Titled Tuesday Blitz September 27 Early 2022"]
[White "Azaladze, Shota"]
[Black "Reyes, Narquingden"]
[WhiteFideId "13603027"]
[BlackFideId "5217334"]
[WhiteElo "2757"]
[BlackElo "2636"]
[Result "0-1"]
[Round "08"]
[TimeControl "180+1"]
[Date "2022.09.27"]
[WhiteClock "0:01:23"]
[BlackClock "0:00:43"]

1. Nf3 {[%clk 0:02:49]}  d5 {[%clk 0:02:58]} 2. g3 {[%clk 0:02:47]}  Bg4 {[%clk 0:02:58]} 3. Bg2 {[%clk 0:02:47]}  Nd7 {[%clk 0:02:58]} 4. O-O {[%clk 0:02:47]}  Ngf6 {[%clk 0:02:58]} 5. d3 {[%clk 0:02:48]}  e6 {[%clk 0:02:58]} 6. Nbd2 {[%clk 0:02:48]}  Be7 {[%clk 0:02:58]} 7. e4 {[%clk 0:02:49]}  O-O {[%clk 0:02:58]} 8. h3 {[%clk 0:02:48]}  Bh5 {[%clk 0:02:57]} 9. Qe2 {[%clk 0:02:48]}  c5 {[%clk 0:02:57]} 10. Re1 {[%clk 0:02:48]}  Rc8 {[%clk 0:02:56]} 11. Nf1 {[%clk 0:02:48]}  b5 {[%clk 0:02:56]} 12. g4 {[%clk 0:02:47]}  Bg6 {[%clk 0:02:55]} 13. Ng3 {[%clk 0:02:48]}  c4 {[%clk 0:02:55]} 14. e5 {[%clk 0:02:47]}  Ne8 {[%clk 0:02:54]} 15. d4 {[%clk 0:02:47]}  b4 {[%clk 0:02:52]} 16. Bf4 {[%clk 0:02:44]}  Nb6 {[%clk 0:02:52]} 17. Qe3 {[%clk 0:02:42]}  Bxc2 {[%clk 0:02:50]} 18. h4 {[%clk 0:02:41]}  c3 {[%clk 0:02:47]} 19. b3 {[%clk 0:02:41]}  Bxh4 {[%clk 0:02:40]} 20. Nxh4 {[%clk 0:02:40]}  Qxh4 {[%clk 0:02:41]} 21. Bf3 {[%clk 0:02:40]}  Qe7 {[%clk 0:02:29]} 22. Kg2 {[%clk 0:02:40]}  f5 {[%clk 0:02:21]} 23. exf6 {[%clk 0:02:37]}  Nxf6 {[%clk 0:02:19]} 24. Re2 {[%clk 0:02:27]}  Bg6 {[%clk 0:02:12]} 25. Rae1 {[%clk 0:02:28]}  c2 {[%clk 0:02:10]} 26. Nf5 {[%clk 0:02:21]}  Qd7 {[%clk 0:01:51]} 27. Nh4 {[%clk 0:02:11]}  Rc3 {[%clk 0:01:48]} 28. Qd2 {[%clk 0:02:06]}  Ne4 {[%clk 0:01:45]} 29. Qc1 {[%clk 0:01:59]}  Qf7 {[%clk 0:01:45]} 30. Nxg6 {[%clk 0:01:58]}  hxg6 {[%clk 0:01:43]} 31. Bxe4 {[%clk 0:01:58]}  dxe4 {[%clk 0:01:40]} 32. Rxe4 {[%clk 0:01:56]}  Nd5 {[%clk 0:01:38]} 33. Bg3 {[%clk 0:01:56]}  Qf3+ {[%clk 0:01:37]} 34. Kg1 {[%clk 0:01:56]}  Rfc8 {[%clk 0:01:13]} 35. Rxe6 {[%clk 0:01:55]}  Rd3 {[%clk 0:01:07]} 36. Qg5 {[%clk 0:01:51]}  Rd1 {[%clk 0:00:59]} 37. Kh2 {[%clk 0:01:36]}  c1=Q {[%clk 0:00:44]} 38. Re8+ {[%clk 0:01:35]}  Rxe8 {[%clk 0:00:44]} 39. Rxe8+ {[%clk 0:01:34]}  Kf7 {[%clk 0:00:43]} 40. Re7+ {[%clk 0:01:23]}  Nxe7 {[%clk 0:00:43]} 0-1


[Site "https://www.chess.com"]

[Event "Titled Tuesday Blitz September 27 Early 2022"]
[White "Babazada, Khazar"]
[Black "Oparin, Grigoriy"]
[WhiteFideId "13413554"]
[BlackFideId "24125890"]
[WhiteElo "2409"]
[BlackElo "2639"]
[Result "1-0"]
[Round "08"]
[TimeControl "180+1"]
[Date "2022.09.27"]
[WhiteClock "0:01:02"]
[BlackClock "0:00:05"]

1. e4 {[%clk 0:03:00]}  e5 {[%clk 0:02:59]} 2. Nf3 {[%clk 0:03:00]}  Nc6 {[%clk 0:03:00]} 3. Bb5 {[%clk 0:03:00]}  a6 {[%clk 0:03:00]} 4. Ba4 {[%clk 0:02:58]}  Nf6 {[%clk 0:03:00]} 5. O-O {[%clk 0:02:58]}  Be7 {[%clk 0:02:56]} 6. d4 {[%clk 0:02:58]}  exd4 {[%clk 0:02:46]} 7. e5 {[%clk 0:02:58]}  Ne4 {[%clk 0:02:45]} 8. Nxd4 {[%clk 0:02:54]}  Nc5 {[%clk 0:02:43]} 9. Bxc6 {[%clk 0:02:52]}  dxc6 {[%clk 0:02:43]} 10. Nc3 {[%clk 0:02:51]}  O-O {[%clk 0:02:43]} 11. Be3 {[%clk 0:02:50]}  Re8 {[%clk 0:02:25]} 12. f4 {[%clk 0:02:46]}  Ne6 {[%clk 0:02:25]} 13. Nxe6 {[%clk 0:02:39]}  Qxd1 {[%clk 0:02:23]} 14. Raxd1 {[%clk 0:02:39]}  Bxe6 {[%clk 0:02:23]} 15. f5 {[%clk 0:02:37]}  Bc8 {[%clk 0:02:16]} 16. a3 {[%clk 0:02:35]}  Bf8 {[%clk 0:02:14]} 17. g4 {[%clk 0:02:04]}  Rxe5 {[%clk 0:01:53]} 18. Bf4 {[%clk 0:02:02]}  Re8 {[%clk 0:01:40]} 19. Bxc7 {[%clk 0:02:02]}  b5 {[%clk 0:01:40]} 20. Bd6 {[%clk 0:01:50]}  Bb7 {[%clk 0:01:27]} 21. Bxf8 {[%clk 0:01:49]}  Kxf8 {[%clk 0:01:28]} 22. Rd7 {[%clk 0:01:49]}  Re7 {[%clk 0:01:26]} 23. Rfd1 {[%clk 0:01:50]}  c5 {[%clk 0:01:21]} 24. Kf2 {[%clk 0:01:42]}  Ke8 {[%clk 0:01:08]} 25. Rxe7+ {[%clk 0:01:42]}  Kxe7 {[%clk 0:01:09]} 26. Nd5+ {[%clk 0:01:43]}  Bxd5 {[%clk 0:01:07]} 27. Rxd5 {[%clk 0:01:43]}  Rc8 {[%clk 0:01:07]} 28. Ke3 {[%clk 0:01:39]}  g6 {[%clk 0:01:04]} 29. Kf4 {[%clk 0:01:35]}  f6 {[%clk 0:01:01]} 30. h4 {[%clk 0:01:35]}  Rc6 {[%clk 0:00:56]} 31. fxg6 {[%clk 0:01:34]}  hxg6 {[%clk 0:00:57]} 32. h5 {[%clk 0:01:34]}  Ke6 {[%clk 0:00:48]} 33. Rd8 {[%clk 0:01:29]}  gxh5 {[%clk 0:00:40]} 34. gxh5 {[%clk 0:01:29]}  Rc7 {[%clk 0:00:41]} 35. Ra8 {[%clk 0:01:18]}  Rh7 {[%clk 0:00:25]} 36. Rxa6+ {[%clk 0:01:16]}  Kd5 {[%clk 0:00:24]} 37. Rxf6 {[%clk 0:01:08]}  Rxh5 {[%clk 0:00:24]} 38. Rf5+ {[%clk 0:01:09]}  Rxf5+ {[%clk 0:00:24]} 39. Kxf5 {[%clk 0:01:10]}  Kd4 {[%clk 0:00:19]} 40. Kf4 {[%clk 0:01:09]}  Kc4 {[%clk 0:00:11]} 41. Ke4 {[%clk 0:01:08]}  b4 {[%clk 0:00:11]} 42. a4 {[%clk 0:01:02]}  b3 {[%clk 0:00:12]} 43. cxb3+ {[%clk 0:01:02]}  Kxb3 {[%clk 0:00:13]} 44. a5 {[%clk 0:01:02]}  Kxb2 {[%clk 0:00:05]} 45. Kd5 {[%clk 0:01:02]} 1-0


[Site "https://www.chess.com"]

[Event "Titled Tuesday Blitz September 27 Early 2022"]
[White "Baches Garcia, Guillermo"]
[Black "Szente Varga, Fruzsina"]
[WhiteFideId "2209764"]
[BlackFideId "712264"]
[WhiteElo "2412"]
[BlackElo "1994"]
[Result "0-1"]
[Round "08"]
[TimeControl "180+1"]
[Date "2022.09.27"]
[WhiteClock "0:00:19"]
[BlackClock "0:00:07"]

1. d4 {[%clk 0:03:00]}  Nf6 {[%clk 0:02:51]} 2. c4 {[%clk 0:03:00]}  g6 {[%clk 0:02:51]} 3. Nc3 {[%clk 0:03:00]}  Bg7 {[%clk 0:02:52]} 4. e4 {[%clk 0:03:00]}  d6 {[%clk 0:02:52]} 5. f4 {[%clk 0:03:01]}  O-O {[%clk 0:02:53]} 6. Nf3 {[%clk 0:03:02]}  c5 {[%clk 0:02:53]} 7. d5 {[%clk 0:03:01]}  e6 {[%clk 0:02:54]} 8. dxe6 {[%clk 0:03:02]}  Bxe6 {[%clk 0:02:52]} 9. Bd3 {[%clk 0:03:02]}  Re8 {[%clk 0:02:51]} 10. O-O {[%clk 0:03:01]}  Nc6 {[%clk 0:02:51]} 11. f5 {[%clk 0:02:57]}  Bd7 {[%clk 0:02:47]} 12. Bg5 {[%clk 0:02:52]}  h6 {[%clk 0:02:38]} 13. Bh4 {[%clk 0:02:48]}  g5 {[%clk 0:02:38]} 14. Nxg5 {[%clk 0:02:32]}  hxg5 {[%clk 0:02:24]} 15. Bxg5 {[%clk 0:02:33]}  Ne5 {[%clk 0:02:17]} 16. Be2 {[%clk 0:02:04]}  Bc6 {[%clk 0:02:13]} 17. Qe1 {[%clk 0:01:59]}  Qd7 {[%clk 0:02:06]} 18. Qh4 {[%clk 0:01:51]}  Nh7 {[%clk 0:01:10]} 19. Bf4 {[%clk 0:01:35]}  f6 {[%clk 0:01:06]} 20. Bh5 {[%clk 0:01:25]}  Re7 {[%clk 0:00:46]} 21. Rad1 {[%clk 0:01:22]}  Nxc4 {[%clk 0:00:35]} 22. Bg6 {[%clk 0:01:11]}  Nf8 {[%clk 0:00:35]} 23. Rd3 {[%clk 0:01:09]}  Bxe4 {[%clk 0:00:26]} 24. Nxe4 {[%clk 0:00:50]}  Rxe4 {[%clk 0:00:27]} 25. Rh3 {[%clk 0:00:49]}  Nxg6 {[%clk 0:00:27]} 26. Qh7+ {[%clk 0:00:36]}  Kf8 {[%clk 0:00:27]} 27. Bh6 {[%clk 0:00:36]}  Nce5 {[%clk 0:00:10]} 28. fxg6 {[%clk 0:00:33]}  Nxg6 {[%clk 0:00:01]} 29. Qxg6 {[%clk 0:00:29]}  Rg4 {[%clk 0:00:02]} 30. Rxf6+ {[%clk 0:00:25]}  Kg8 {[%clk 0:00:02]} 31. Qf5 {[%clk 0:00:16]}  Qxf5 {[%clk 0:00:01]} 32. Rxf5 {[%clk 0:00:17]}  Bxh6 {[%clk 0:00:02]} 33. Rxh6 {[%clk 0:00:18]}  Re8 {[%clk 0:00:02]} 34. h3 {[%clk 0:00:18]}  Rd4 {[%clk 0:00:02]} 35. Rg6+ {[%clk 0:00:17]}  Kh7 {[%clk 0:00:02]} 36. Rgf6 {[%clk 0:00:16]}  Re1+ {[%clk 0:00:02]} 37. Kh2 {[%clk 0:00:17]}  Re7 {[%clk 0:00:03]} 38. Rf8 {[%clk 0:00:15]}  Rb4 {[%clk 0:00:02]} 39. R8f6 {[%clk 0:00:15]}  Kg7 {[%clk 0:00:02]} 40. Rf3 {[%clk 0:00:14]}  Rbe4 {[%clk 0:00:01]} 41. R6f5 {[%clk 0:00:15]}  Kg6 {[%clk 0:00:01]} 42. Rf8 {[%clk 0:00:14]}  R4e5 {[%clk 0:00:01]} 43. Rg8+ {[%clk 0:00:14]}  Kh7 {[%clk 0:00:01]} 44. Rg4 {[%clk 0:00:14]}  Rh5 {[%clk 0:00:01]} 45. Rf6 {[%clk 0:00:14]}  Rh6 {[%clk 0:00:02]} 46. Rf5 {[%clk 0:00:14]}  Rhe6 {[%clk 0:00:02]} 47. Rf8 {[%clk 0:00:14]}  Rg6 {[%clk 0:00:02]} 48. Rgf4 {[%clk 0:00:13]}  Rgg7 {[%clk 0:00:02]} 49. Rh4+ {[%clk 0:00:13]}  Kg6 {[%clk 0:00:02]} 50. Rf3 {[%clk 0:00:14]}  Rgf7 {[%clk 0:00:02]} 51. Rg3+ {[%clk 0:00:14]}  Kf6 {[%clk 0:00:02]} 52. Rh6+ {[%clk 0:00:14]}  Ke5 {[%clk 0:00:02]} 53. Re3+ {[%clk 0:00:15]}  Kd5 {[%clk 0:00:03]} 54. Rg3 {[%clk 0:00:15]}  Re6 {[%clk 0:00:02]} 55. Rh8 {[%clk 0:00:14]}  Kc6 {[%clk 0:00:03]} 56. Rh5 {[%clk 0:00:15]}  Rc7 {[%clk 0:00:04]} 57. Rgg5 {[%clk 0:00:15]}  Ree7 {[%clk 0:00:03]} 58. Rd5 {[%clk 0:00:15]}  Red7 {[%clk 0:00:04]} 59. Rd2 {[%clk 0:00:15]}  b5 {[%clk 0:00:04]} 60. Rh6 {[%clk 0:00:15]}  c4 {[%clk 0:00:04]} 61. h4 {[%clk 0:00:15]}  Kc5 {[%clk 0:00:04]} 62. Rg6 {[%clk 0:00:16]}  d5 {[%clk 0:00:05]} 63. Rg5 {[%clk 0:00:16]}  Rc6 {[%clk 0:00:05]} 64. Rg3 {[%clk 0:00:16]}  Rh6 {[%clk 0:00:05]} 65. Kh3 {[%clk 0:00:16]}  Rh5 {[%clk 0:00:05]} 66. Rg4 {[%clk 0:00:16]}  Rdh7 {[%clk 0:00:06]} 67. g3 {[%clk 0:00:16]}  b4 {[%clk 0:00:06]} 68. Rf4 {[%clk 0:00:17]}  c3 {[%clk 0:00:06]} 69. bxc3 {[%clk 0:00:17]}  bxc3 {[%clk 0:00:07]} 70. Rc2 {[%clk 0:00:17]}  d4 {[%clk 0:00:07]} 71. Rf3 {[%clk 0:00:18]}  Kc4 {[%clk 0:00:08]} 72. Rf8 {[%clk 0:00:18]}  d3 {[%clk 0:00:08]} 73. Rc8+ {[%clk 0:00:19]}  Kd4 {[%clk 0:00:08]} 74. R2xc3 {[%clk 0:00:19]}  d2 {[%clk 0:00:08]} 75. R3c7 {[%clk 0:00:18]}  d1=Q {[%clk 0:00:07]} 76. Rxh7 {[%clk 0:00:18]}  Qh1+ {[%clk 0:00:07]} 77. Kg4 {[%clk 0:00:18]}  Rd5 {[%clk 0:00:07]} 78. Rd8 {[%clk 0:00:19]}  Qe4+ {[%clk 0:00:07]} 0-1


[Site "https://www.chess.com"]

[Event "Titled Tuesday Blitz September 27 Early 2022"]
[White "Badelka, Olga"]
[Black "Aloma Vidal, Robert"]
[WhiteFideId "13509926"]
[BlackFideId "2260409"]
[WhiteElo "2165"]
[BlackElo "2435"]
[Result "1-0"]
[Round "08"]
[TimeControl "180+1"]
[Date "2022.09.27"]
[WhiteClock "0:00:04"]
[BlackClock "0:00:13"]

1. c4 {[%clk 0:03:00]}  c6 {[%clk 0:02:59]} 2. Nf3 {[%clk 0:02:59]}  d5 {[%clk 0:03:00]} 3. e3 {[%clk 0:03:00]}  Nf6 {[%clk 0:02:59]} 4. b3 {[%clk 0:03:00]}  e6 {[%clk 0:03:00]} 5. Bb2 {[%clk 0:03:00]}  Nbd7 {[%clk 0:03:00]} 6. Be2 {[%clk 0:02:56]}  Bd6 {[%clk 0:03:00]} 7. Qc2 {[%clk 0:02:54]}  O-O {[%clk 0:02:59]} 8. g4 {[%clk 0:02:48]}  e5 {[%clk 0:02:59]} 9. g5 {[%clk 0:02:48]}  Ne4 {[%clk 0:02:51]} 10. Nc3 {[%clk 0:02:45]}  Nxg5 {[%clk 0:02:30]} 11. cxd5 {[%clk 0:02:44]}  cxd5 {[%clk 0:02:24]} 12. Nxd5 {[%clk 0:02:44]}  Nb6 {[%clk 0:02:17]} 13. Nxb6 {[%clk 0:02:33]}  Nxf3+ {[%clk 0:02:12]} 14. Bxf3 {[%clk 0:02:33]}  axb6 {[%clk 0:02:05]} 15. Be4 {[%clk 0:02:22]}  Qh4 {[%clk 0:02:01]} 16. Bc3 {[%clk 0:02:09]}  b5 {[%clk 0:01:58]} 17. b4 {[%clk 0:01:59]}  Be6 {[%clk 0:01:58]} 18. Bxb7 {[%clk 0:01:52]}  Rad8 {[%clk 0:01:42]} 19. a4 {[%clk 0:01:42]}  bxa4 {[%clk 0:01:42]} 20. Rxa4 {[%clk 0:01:41]}  f5 {[%clk 0:01:25]} 21. b5 {[%clk 0:01:37]}  Qe7 {[%clk 0:01:22]} 22. Bc6 {[%clk 0:01:33]}  f4 {[%clk 0:01:09]} 23. b6 {[%clk 0:01:28]}  fxe3 {[%clk 0:01:06]} 24. fxe3 {[%clk 0:01:19]}  Rc8 {[%clk 0:01:04]} 25. Be4 {[%clk 0:00:55]}  Qh4+ {[%clk 0:00:52]} 26. Kd1 {[%clk 0:00:55]}  Kh8 {[%clk 0:00:49]} 27. b7 {[%clk 0:00:46]}  Rb8 {[%clk 0:00:42]} 28. Kc1 {[%clk 0:00:42]}  Qh3 {[%clk 0:00:33]} 29. Ra8 {[%clk 0:00:26]}  Bf5 {[%clk 0:00:20]} 30. Bxf5 {[%clk 0:00:23]}  Rxf5 {[%clk 0:00:19]} 31. Rxb8+ {[%clk 0:00:22]}  Bxb8 {[%clk 0:00:19]} 32. Bb4 {[%clk 0:00:12]}  h5 {[%clk 0:00:15]} 33. Qc8+ {[%clk 0:00:11]}  Kh7 {[%clk 0:00:16]} 34. Qxb8 {[%clk 0:00:11]}  Qf3 {[%clk 0:00:15]} 35. Rg1 {[%clk 0:00:06]}  Qc6+ {[%clk 0:00:14]} 36. Kb2 {[%clk 0:00:05]}  Qc4 {[%clk 0:00:13]} 37. Qd6 {[%clk 0:00:05]}  Rf6 {[%clk 0:00:13]} 38. b8=Q {[%clk 0:00:04]} 1-0


[Site "https://www.chess.com"]

[Event "Titled Tuesday Blitz September 27 Early 2022"]
[White "Barria Zuniga, Daniel"]
[Black "Sukandar, Irine Kharisma"]
[WhiteFideId "3400816"]
[BlackFideId "7101937"]
[WhiteElo "2414"]
[BlackElo "2284"]
[Result "1-0"]
[Round "08"]
[TimeControl "180+1"]
[Date "2022.09.27"]
[WhiteClock "0:00:34"]
[BlackClock "0:00:02"]

1. d4 {[%clk 0:03:00]}  d5 {[%clk 0:02:57]} 2. c4 {[%clk 0:03:00]}  c6 {[%clk 0:02:57]} 3. Nf3 {[%clk 0:02:59]}  e6 {[%clk 0:02:56]} 4. Nc3 {[%clk 0:02:59]}  Nf6 {[%clk 0:02:55]} 5. Bg5 {[%clk 0:02:58]}  Be7 {[%clk 0:02:45]} 6. e3 {[%clk 0:02:58]}  Nbd7 {[%clk 0:02:39]} 7. Qc2 {[%clk 0:02:58]}  O-O {[%clk 0:02:30]} 8. O-O-O {[%clk 0:02:54]}  a5 {[%clk 0:02:22]} 9. Kb1 {[%clk 0:02:53]}  a4 {[%clk 0:02:10]} 10. h3 {[%clk 0:02:47]}  dxc4 {[%clk 0:02:05]} 11. Bxc4 {[%clk 0:02:47]}  b5 {[%clk 0:02:04]} 12. Bd3 {[%clk 0:02:46]}  a3 {[%clk 0:01:40]} 13. b3 {[%clk 0:02:44]}  b4 {[%clk 0:01:36]} 14. Bxf6 {[%clk 0:02:40]}  Nxf6 {[%clk 0:01:35]} 15. Ne4 {[%clk 0:02:39]}  Nd5 {[%clk 0:01:28]} 16. Ne5 {[%clk 0:02:30]}  Bb7 {[%clk 0:01:21]} 17. Ka1 {[%clk 0:02:24]}  f5 {[%clk 0:01:19]} 18. Nc5 {[%clk 0:02:24]}  Bxc5 {[%clk 0:01:12]} 19. Qxc5 {[%clk 0:02:24]}  Ra5 {[%clk 0:00:58]} 20. Qc2 {[%clk 0:02:21]}  c5 {[%clk 0:00:57]} 21. Bc4 {[%clk 0:02:02]}  cxd4 {[%clk 0:00:53]} 22. exd4 {[%clk 0:01:59]}  Kh8 {[%clk 0:00:47]} 23. Rhe1 {[%clk 0:01:55]}  Nc3 {[%clk 0:00:45]} 24. Bxe6 {[%clk 0:01:54]}  Nxd1 {[%clk 0:00:43]} 25. Qxd1 {[%clk 0:01:50]}  Bd5 {[%clk 0:00:39]} 26. Nc4 {[%clk 0:01:30]}  Ra6 {[%clk 0:00:27]} 27. Bxd5 {[%clk 0:01:20]}  Qxd5 {[%clk 0:00:27]} 28. Ne3 {[%clk 0:01:20]}  Qc6 {[%clk 0:00:25]} 29. Qd2 {[%clk 0:01:16]}  Rb6 {[%clk 0:00:24]} 30. Rc1 {[%clk 0:01:15]}  Qf6 {[%clk 0:00:23]} 31. Nd5 {[%clk 0:01:13]}  Qh6 {[%clk 0:00:20]} 32. Qxh6 {[%clk 0:01:11]}  Rxh6 {[%clk 0:00:20]} 33. Nxb4 {[%clk 0:01:11]}  Rd6 {[%clk 0:00:20]} 34. Rc4 {[%clk 0:01:10]}  Re8 {[%clk 0:00:19]} 35. Kb1 {[%clk 0:01:06]}  h5 {[%clk 0:00:19]} 36. Kc1 {[%clk 0:01:02]}  Re2 {[%clk 0:00:18]} 37. Rc2 {[%clk 0:01:02]}  Re1+ {[%clk 0:00:17]} 38. Kd2 {[%clk 0:01:02]}  Rg1 {[%clk 0:00:16]} 39. d5 {[%clk 0:01:01]}  Rxg2 {[%clk 0:00:15]} 40. Ke3 {[%clk 0:01:01]}  Rh2 {[%clk 0:00:11]} 41. Rc6 {[%clk 0:01:01]}  Rxh3+ {[%clk 0:00:11]} 42. f3 {[%clk 0:00:55]}  Rd8 {[%clk 0:00:11]} 43. d6 {[%clk 0:00:50]}  Rh4 {[%clk 0:00:10]} 44. Nd5 {[%clk 0:00:48]}  Rh2 {[%clk 0:00:07]} 45. Nb6 {[%clk 0:00:41]}  Rxa2 {[%clk 0:00:06]} 46. d7 {[%clk 0:00:41]}  Kh7 {[%clk 0:00:06]} 47. Rc8 {[%clk 0:00:40]}  Rxd7 {[%clk 0:00:06]} 48. Nxd7 {[%clk 0:00:41]}  Rb2 {[%clk 0:00:06]} 49. Nf8+ {[%clk 0:00:39]}  Kh6 {[%clk 0:00:06]} 50. f4 {[%clk 0:00:35]}  Rxb3+ {[%clk 0:00:05]} 51. Kd4 {[%clk 0:00:35]}  a2 {[%clk 0:00:06]} 52. Rc6+ {[%clk 0:00:35]}  g6 {[%clk 0:00:02]} 53. Rxg6# {[%clk 0:00:34]} 1-0


[Site "https://www.chess.com"]